bitfinex/quotes_ETHUSD_20241122
["timestamp","ask_amount","ask_price","bid_price","bid_amount"]
[1732314051058,0.79828559,3301.9,3301.3,0.35511447]
[1732314051259,0.79828559,3301.9,3301.4,0.03781779]
[1732314054999,0.79828559,3301.9,3301.5,0.55]
[1732314055405,0.79828559,3301.9,3301.7,0.55]
[1732314055708,0.79828559,3301.9,3300.8,0.7898]
[1732314055709,0.79828559,3301.9,3301.2,0.35511447]
[1732314055862,0.79828559,3301.9,3301.3,0.03655776]
[1732314056687,0.79828559,3301.9,3301.3,0.39167223]
[1732314056865,0.79828559,3301.9,3301.4,0.55]
[1732314057076,0.79828559,3301.9,3301.5,0.03660082]
[1732314060582,0.79828559,3301.9,3300.9,0.55]
[1732314060785,0.79828559,3301.9,3301.6,0.03665871]
[1732314061006,0.79828559,3301.9,3300.9,0.90511447]
[1732314061177,0.79828559,3301.9,3301.7,0.03666168]
[1732314061517,0.79828559,3301.9,3300.9,0.90511447]
[1732314061814,0.79828559,3301.9,3301.1,0.55]
[1732314062393,0.79828559,3301.9,3301.2,0.03545168]
[1732314062876,0.79828559,3301.9,3300.3,0.35511447]
[1732314063280,0.79828559,3301.9,3300.4,0.03425913]
[1732314063482,0.79828559,3301.9,3300.4,0.3893736]
[1732314063680,0.79828559,3301.9,3300.5,0.35511447]
[1732314063900,0.79828559,3301.9,3300.6,0.58426209]
[1732314064117,0.79828559,3301.9,3300.6,0.03426209]
[1732314064941,0.7961,3301.8,3300.6,0.03426209]
[1732314065233,0.82238559,3301.7,3300.6,0.03426209]
[1732314065731,0.7861,3301.4,3300.6,0.03426209]
[1732314065894,0.82238559,3301.3,3300.6,0.03426209]
[1732314066229,0.82238559,3301.3,3300.5,0.35511447]
[1732314066543,0.82238559,3301.3,3300.6,0.03430653]
[1732314066834,0.82238559,3301.3,3300.5,0.35511447]
[1732314067346,0.82238559,3301.3,3300.6,0.03430653]
[1732314067528,0.82238559,3301.3,3300.5,0.35511447]
[1732314067843,0.82238559,3301.3,3300.6,0.03430653]
[1732314068206,0.82238559,3301.3,3300.5,0.35511447]
[1732314068515,0.82238559,3301.3,3300.6,0.03430653]
[1732314068834,0.82238559,3301.3,3300.5,0.35511447]
[1732314069207,0.82238559,3301.3,3300.6,0.03430653]
[1732314069616,0.82238559,3301.3,3300.5,0.35511447]
[1732314070113,0.82238559,3301.3,3300.6,0.03430653]
[1732314070335,0.82238559,3301.3,3299.9,0.35511447]
[1732314070527,0.82238559,3301.3,3300.0,0.03430653]
[1732314070723,0.82238559,3301.3,3300.0,0.389421]
[1732314071424,0.82238559,3301.3,3300.1,0.35511447]
[1732314072008,0.82238559,3301.3,3300.2,0.03430653]
[1732314075110,0.82238559,3301.3,3300.3,0.7793]
[1732314075316,0.82238559,3301.3,3300.4,0.03443987]
[1732314075510,0.82238559,3301.3,3300.5,0.35511447]
[1732314075764,0.7861,3301.3,3300.5,0.35511447]
[1732314075940,0.7861,3301.3,3300.7,0.7974]
[1732314076147,0.03628559,3301.2,3300.7,0.7974]
[1732314076369,0.03628559,3301.2,3300.8,0.03443987]
[1732314076650,0.03628559,3301.2,3300.7,0.7974]
[1732314076847,0.03628559,3301.2,3300.9,0.03443987]
[1732314077154,0.03628559,3301.2,3301.0,0.03443987]
[1732314077318,0.03628559,3301.2,3300.7,0.7974]
[1732314077656,0.821,3301.5,3300.8,0.03443987]
[1732314077657,0.03628559,3301.4,3300.8,0.03443987]
[1732314077956,0.81728559,3301.5,3300.8,0.03443987]
[1732314078915,0.81728559,3301.5,3300.5,1.15251447]
[1732314079115,0.81728559,3301.5,3300.6,0.03330335]
[1732314079844,0.81728559,3301.5,3299.9,1.15251447]
[1732314080188,0.81728559,3301.5,3300.0,0.03328705]
[1732314080538,0.81728559,3301.5,3300.0,0.38840152]
[1732314081675,0.81728559,3301.5,3300.1,0.35511447]
[1732314082279,0.81728559,3301.5,3300.2,0.03328705]
[1732314083981,0.81728559,3301.5,3300.3,0.90511447]
[1732314084165,0.81728559,3301.5,3300.4,0.03335521]
[1732314084368,0.81728559,3301.5,3300.5,0.90511447]
[1732314084757,0.81728559,3301.5,3300.7,0.55]
[1732314085143,0.81728559,3301.5,3300.9,0.55]
[1732314085654,0.81728559,3301.5,3300.6,0.55]
[1732314085849,0.81728559,3301.5,3301.0,0.03332854]
[1732314086051,0.81728559,3301.5,3300.4,0.55]
[1732314086297,0.81728559,3301.5,3301.1,0.03327074]
[1732314086585,0.81728559,3301.5,3301.2,0.03214053]
[1732314086878,0.81728559,3301.5,3300.4,0.55]
[1732314087408,0.81728559,3301.5,3300.6,0.55]
[1732314087761,0.81728559,3301.5,3300.4,0.55]
[1732314087962,0.81728559,3301.5,3300.6,0.55]
[1732314088399,0.81728559,3301.5,3300.7,0.03213312]
[1732314088713,0.81728559,3301.5,3300.4,0.55]
[1732314088863,0.81728559,3301.5,3300.8,0.0321346]
[1732314089063,0.81728559,3301.5,3300.4,0.55]
[1732314089401,0.81728559,3301.5,3300.9,0.0321346]
[1732314089573,0.81728559,3301.5,3300.4,0.90511447]
[1732314089769,0.81728559,3301.5,3300.6,0.55]
[1732314090074,0.81728559,3301.5,3300.4,0.90511447]
[1732314090272,0.81728559,3301.5,3300.7,0.0321346]
[1732314090471,0.81728559,3301.5,3300.4,0.90511447]
[1732314090690,0.81728559,3301.5,3300.8,0.0321346]
[1732314090857,0.81728559,3301.5,3300.4,0.90511447]
[1732314091062,0.81728559,3301.5,3300.9,0.0321346]
[1732314091284,0.81728559,3301.5,3300.6,0.55]
[1732314091517,0.81728559,3301.5,3301.0,0.0321346]
[1732314091816,0.81728559,3301.5,3301.1,0.03214053]
[1732314092173,0.81728559,3301.5,3300.9,0.35511447]
[1732314092359,0.81728559,3301.5,3301.0,0.03214053]
[1732314092567,0.81728559,3301.5,3300.6,0.55]
[1732314092898,0.81728559,3301.5,3300.8,0.55]
[1732314093072,0.81728559,3301.5,3300.7,0.03214053]
[1732314093280,0.81728559,3301.5,3300.0,0.35511447]
[1732314093460,0.81728559,3301.5,3300.8,0.03214053]
[1732314093805,0.81728559,3301.5,3300.0,0.35511447]
[1732314094201,0.81728559,3301.5,3300.1,0.03215831]
[1732314094363,0.81728559,3301.5,3300.2,0.35511447]
[1732314094770,0.81728559,3301.5,3300.3,0.03215831]
[1732314095567,0.81728559,3301.5,3300.3,0.38727278]
[1732314096403,0.81728559,3301.5,3300.4,0.35511447]
[1732314096606,0.81728559,3301.5,3300.5,0.03108636]
[1732314097302,0.81728559,3301.5,3300.6,1.13291447]
[1732314097718,0.81728559,3301.5,3300.7,0.03111599]
[1732314098569,0.81728559,3301.5,3300.7,0.93623046]
[1732314098768,0.81728559,3301.5,3300.9,0.55]
[1732314099006,0.8238,3301.8,3301.0,0.03110265]
[1732314101769,0.7657,3302.1,3301.2,0.55]
[1732314102012,0.7657,3302.1,3301.4,0.55]
[1732314102216,0.7657,3302.1,3301.6,0.55]
[1732314102710,0.7657,3302.1,3301.7,0.02898371]
[1732314104811,0.7657,3302.1,3301.8,0.55]
[1732314104973,0.7657,3302.1,3301.9,0.02894076]
[1732314107673,0.7657,3302.1,3301.9,0.38405523]
[1732314110127,0.7657,3302.1,3302.0,0.35511447]
[1732314110420,0.8238,3302.6,3302.0,0.35511447]
[1732314110421,0.8238,3302.6,3302.0,0.38382864]
[1732314110593,1.3738,3302.6,3302.1,0.55]
[1732314110785,0.55,3302.6,3302.2,0.35511447]
[1732314111319,0.8313,3302.9,3302.3,0.02871417]
[1732314111692,0.01,3304.4,3302.3,0.57871417]
[1732314111693,1.208253,3302.8,3302.3,0.57871417]
[1732314111892,0.8313,3303.2,3302.4,0.35511447]
[1732314112109,0.8313,3303.2,3302.5,1.3394]
[1732314112317,0.8313,3303.2,3302.5,1.69451447]
[1732314112617,0.8313,3303.2,3302.6,0.02870381]
[1732314115625,0.8313,3303.2,3302.6,0.38381828]
[1732314115809,0.8313,3303.2,3302.6,0.02870381]
[1732314116127,0.8313,3303.2,3302.0,1.10511447]
[1732314116586,0.8313,3303.2,3302.1,0.02859279]
[1732314116989,0.8313,3303.2,3302.1,0.57859279]
[1732314117833,0.8313,3303.2,3302.1,0.02859279]
[1732314118834,0.8313,3303.2,3302.0,0.35511447]
[1732314123199,0.8313,3303.2,3301.6,1.10511447]
[1732314125536,0.8313,3303.2,3301.6,0.35511447]
[1732314127135,0.8313,3303.2,3301.7,0.75]
[1732314127340,0.8313,3303.2,3301.8,0.35511447]
[1732314128801,0.8313,3303.2,3301.9,0.75]
[1732314129159,0.8313,3303.2,3302.2,0.55]
[1732314129701,0.8313,3303.2,3302.3,0.75]
[1732314129908,0.8313,3303.2,3302.4,0.55]
[1732314130067,0.02550101,3303.9,3302.4,0.55]
[1732314130259,0.7591,3303.8,3302.4,0.55]
[1732314130478,0.7591,3303.8,3302.6,0.55]
[1732314130670,0.7591,3303.8,3302.8,0.55]
[1732314131904,0.7591,3303.8,3302.8,0.51]
[1732314133578,0.7591,3303.8,3302.7,0.8302]
[1732314134704,0.7591,3303.8,3302.1,1.3802]
[1732314134911,0.7591,3303.8,3302.1,1.73531447]
[1732314135068,0.7591,3303.8,3302.2,0.35511447]
[1732314135273,0.7591,3303.8,3302.3,0.55]
[1732314135496,0.7591,3303.8,3301.2,0.01]
[1732314135497,0.7591,3303.8,3302.5,0.55]
[1732314135697,0.7591,3303.8,3302.5,0.90511447]
[1732314136113,0.7591,3303.8,3302.7,1.3205]
[1732314136293,0.7591,3303.8,3302.8,0.7705]
[1732314136478,0.7591,3303.8,3302.9,0.55]
[1732314138625,0.7591,3303.8,3303.0,0.38212559]
[1732314142895,0.7591,3303.8,3303.1,0.55]
[1732314143134,0.7591,3303.8,3303.3,0.55]
[1732314143603,0.7591,3303.8,3303.3,0.93212559]
[1732314147660,0.7591,3303.8,3303.3,0.38212559]
[1732314149424,0.7591,3303.8,3302.5,0.38212559]
[1732314149754,0.7591,3303.8,3302.1,0.7795]
[1732314149755,0.7591,3303.8,3302.6,0.38212559]
[1732314156880,0.7691,3303.8,3302.6,0.38212559]
[1732314157037,0.7691,3303.8,3302.1,0.7795]
[1732314157038,0.7691,3303.8,3302.2,0.38212559]
[1732314157845,0.01,3303.7,3302.2,0.38212559]
[1732314158046,0.8108,3303.6,3302.2,0.38212559]
[1732314160678,0.01,3303.5,3302.2,0.38212559]
[1732314160884,0.8108,3303.4,3302.2,0.38212559]
[1732314161181,0.8208,3303.4,3302.2,0.38212559]
[1732314161360,0.8208,3303.4,3301.8,0.38212559]
[1732314161884,0.8108,3303.2,3301.8,0.38212559]
[1732314163582,0.01,3303.1,3301.8,0.38212559]
[1732314163782,0.01,3303.1,3301.4,0.38212559]
[1732314163783,0.8108,3302.8,3301.4,0.38212559]
[1732314164018,0.8108,3302.6,3301.4,0.38212559]
[1732314164144,0.72682573,3302.6,3301.4,0.38212559]
[1732314165647,0.72682573,3302.6,3298.4,0.03029136]
[1732314165648,2.77983196,3302.3,3300.4,0.7868]
[1732314165874,0.2779832,3302.2,3300.8,0.38212559]
[1732314166377,0.01,3302.4,3300.8,0.38212559]
[1732314167286,0.8108,3302.3,3300.8,0.38212559]
[1732314171289,0.55,3302.2,3300.8,0.38212559]
[1732314171489,0.55,3302.0,3300.8,0.38212559]
[1732314171787,0.8129,3301.9,3300.8,0.38212559]
[1732314179011,0.8142,3301.7,3300.1,0.38212559]
[1732314184302,0.8142,3301.7,3300.2,0.7802]
[1732314184603,0.8142,3301.7,3300.3,0.38212559]
[1732314185498,0.8142,3301.7,3300.4,0.7802]
[1732314185675,0.8142,3301.7,3300.5,0.38212559]
[1732314189724,0.8142,3301.7,3300.5,0.41242097]
[1732314190017,0.8142,3301.7,3300.5,0.38212559]
[1732314190429,0.8142,3301.7,3300.5,0.41242097]
[1732314190726,0.8142,3301.7,3300.7,0.8011]
[1732314191020,0.8142,3301.7,3300.8,0.41241798]
[1732314191205,0.8142,3301.7,3300.8,0.38212559]
[1732314192434,0.7804,3302.8,3301.0,0.8011]
[1732314192618,0.7804,3302.7,3301.0,0.8011]
[1732314192790,0.7804,3302.7,3301.0,1.18322559]
[1732314192994,0.62990491,3302.7,3301.1,0.38212559]
[1732314196239,0.62990491,3302.7,3301.1,0.41241546]
[1732314196435,0.62990491,3302.7,3301.1,0.38212559]
[1732314196732,0.62990491,3302.7,3301.1,0.41241545]
[1732314197253,0.62990491,3302.7,3301.1,0.38212559]
[1732314202556,0.7697,3302.5,3301.1,0.38212559]
[1732314203146,0.7697,3303.2,3301.5,0.8043]
[1732314203320,0.7697,3303.2,3301.8,0.55]
[1732314203519,0.7697,3303.2,3301.9,1.18642559]
[1732314203706,0.7697,3303.2,3302.0,0.55]
[1732314203912,0.7697,3303.2,3302.1,0.38212559]
[1732314206211,0.7697,3303.2,3301.9,0.8043]
[1732314207054,0.7697,3303.2,3301.9,1.18642559]
[1732314207749,0.7697,3303.2,3302.0,0.38212559]
[1732314211882,0.7697,3303.2,3302.1,0.8151]
[1732314212055,0.7697,3303.2,3302.2,0.38212559]
[1732314217083,0.7697,3303.2,3302.3,0.03027869]
[1732314217387,0.7697,3303.2,3302.4,0.38212559]
[1732314217689,0.757,3304.1,3302.6,0.7565]
[1732314217864,0.1965088,3304.0,3302.7,0.41239987]
[1732314218062,0.757,3304.1,3302.7,0.41239987]
[1732314218815,0.757,3304.1,3302.9,0.7565]
[1732314219021,0.757,3304.1,3303.0,0.41239692]
[1732314219379,0.757,3304.1,3303.1,0.55]
[1732314219603,0.757,3304.1,3303.2,0.41239458]
[1732314220119,1.208088,3304.2,3303.3,1.3065]
[1732314220293,1.208088,3304.2,3303.4,0.40212559]
[1732314220491,1.208088,3304.2,3303.5,0.58026497]
[1732314220701,1.208088,3304.2,3303.6,0.40212559]
[1732314220879,1.208088,3304.2,3303.7,0.78676493]
[1732314221078,0.76814112,3304.2,3303.8,0.95212559]
[1732314221278,0.76814112,3304.2,3303.9,0.03026244]
[1732314221589,0.76814112,3304.2,3304.0,0.36546335]
[1732314222392,0.757,3305.7,3304.1,1.33676224]
[1732314222606,0.757,3305.7,3304.2,0.42161344]
[1732314222797,1.207372,3305.6,3304.3,0.55]
[1732314223015,1.207372,3305.6,3304.4,0.42161344]
[1732314223332,1.207372,3305.6,3304.5,0.55]
[1732314223506,1.207372,3305.6,3304.7,0.7565]
[1732314223709,1.4038092,3305.6,3304.8,0.39135534]
[1732314228754,0.02550101,3305.1,3304.8,0.39135534]
[1732314229543,0.02550101,3305.1,3304.9,0.7565]
[1732314229705,1.207372,3305.6,3305.5,0.02550101]
[1732314230067,1.207372,3305.6,3305.0,0.40741052]
[1732314231405,0.33757675,3305.6,3305.3,0.55]
[1732314231594,0.8297,3306.5,3305.4,0.37426092]
[1732314231901,0.8297,3306.5,3305.5,0.03024695]
[1732314232107,0.8297,3306.5,3305.6,0.34612952]
[1732314233876,0.8297,3307.0,3305.7,0.85704693]
[1732314234187,0.8297,3306.4,3305.8,0.40516285]
[1732314235042,0.8297,3306.3,3305.8,0.40516285]
[1732314235376,0.16594,3306.2,3305.8,0.40516285]
[1732314243293,0.8297,3306.4,3305.8,0.40516285]
[1732314247050,0.8297,3306.4,3305.9,0.8115]
[1732314247248,0.8297,3306.4,3306.0,0.40516285]
[1732314248097,0.8297,3306.4,3304.6,0.03024755]
[1732314248098,0.8054,3306.3,3305.1,0.55]
[1732314248393,0.16351,3306.2,3305.2,1.18085222]
[1732314248547,0.8054,3306.3,3305.2,1.18085222]
[1732314252330,0.8054,3306.3,3305.3,0.8028]
[1732314252532,0.8054,3306.3,3305.4,0.36935222]
[1732314252749,0.8297,3306.4,3305.4,0.36935222]
[1732314252952,0.8297,3306.4,3305.5,0.8028]
[1732314253123,0.99158,3306.4,3305.5,0.8028]
[1732314254043,0.8297,3306.4,3305.6,0.8028]
[1732314254247,0.8297,3306.4,3305.7,0.8028]
[1732314254464,0.8297,3306.4,3305.7,1.17215222]
[1732314255467,0.8297,3306.4,3305.7,0.8028]
[1732314256766,0.8125,3306.3,3305.7,0.8028]
[1732314257066,0.16422,3306.2,3305.7,0.8028]
[1732314259233,0.16422,3306.2,3305.4,0.8092]
[1732314259440,0.8125,3306.3,3305.4,0.8092]
[1732314266041,0.8125,3306.3,3304.7,0.8092]
[1732314266243,0.8125,3306.3,3304.8,0.22115556]
[1732314266462,0.8125,3306.3,3304.7,0.8092]
[1732314266636,0.97672,3306.2,3304.7,0.8092]
[1732314266831,0.8125,3306.2,3304.7,0.8092]
[1732314270258,0.55,3306.1,3304.7,0.8092]
[1732314270457,0.8125,3306.2,3304.7,0.8092]
[1732314270641,0.755,3306.2,3304.7,0.8092]
[1732314270979,0.755,3306.0,3304.7,0.8092]
[1732314290913,0.8065,3305.6,3304.3,0.8152]
[1732314291085,0.55,3305.5,3304.1,0.8152]
[1732314291291,0.8065,3305.4,3304.1,0.8152]
[1732314291781,0.55,3305.3,3304.1,0.8152]
[1732314292113,0.8065,3305.0,3304.1,0.8152]
[1732314293669,0.8065,3305.0,3302.5,0.8152]
[1732314293947,0.8065,3305.0,3302.7,0.8152]
[1732314294178,0.8065,3305.0,3302.9,0.8152]
[1732314294686,0.55,3305.3,3302.9,0.8152]
[1732314294687,0.8065,3304.8,3302.9,0.8152]
[1732314298182,0.7997,3304.6,3302.9,0.8152]
[1732314299317,0.55,3304.5,3302.9,0.8152]
[1732314299587,0.55,3304.3,3302.9,0.8152]
[1732314299783,0.7997,3304.2,3302.9,0.8152]
[1732314300296,5.5566,3305.1,3303.1,0.7541]
[1732314300297,0.7997,3305.0,3303.1,0.7541]
[1732314300621,5.0,3305.1,3303.6,0.55]
[1732314300825,1.3005057,3306.4,3303.9,0.55]
[1732314300826,0.7997,3306.3,3303.9,0.55]
[1732314301125,0.16294,3306.2,3304.3,0.55]
[1732314301280,0.16294,3306.2,3304.4,0.7541]
[1732314301495,0.7997,3306.1,3304.4,0.7541]
[1732314305233,0.7997,3306.1,3301.6,1.24751975]
[1732314305234,0.7997,3306.1,3304.6,0.7541]
[1732314305557,0.8297,3306.4,3304.9,0.55]
[1732314305765,0.8297,3306.4,3305.0,0.78434997]
[1732314307622,0.8297,3306.4,3305.0,0.7541]
[1732314307929,0.8297,3306.4,3305.2,0.7541]
[1732314308132,0.8297,3306.4,3305.3,0.78434996]
[1732314308519,0.7997,3307.1,3305.3,0.78434996]
[1732314310252,0.7997,3307.1,3305.4,0.03024697]
[1732314310458,0.7997,3307.1,3305.4,0.7541]
[1732314310660,0.799,3307.4,3305.6,0.7957]
[1732314311159,0.7957,3307.3,3305.6,0.7957]
[1732314311368,0.15947,3307.2,3305.6,0.7957]
[1732314313172,0.799,3307.1,3305.6,0.7957]
[1732314317441,0.7957,3307.3,3305.6,0.7957]
[1732314317853,0.7957,3307.3,3305.7,0.8045]
[1732314318066,0.7957,3307.3,3305.8,0.55]
[1732314318263,0.7957,3307.3,3305.9,0.8045]
[1732314318469,0.1493577,3307.5,3305.9,0.8045]
[1732314318964,0.7673,3307.4,3305.9,0.8045]
[1732314320781,0.7673,3307.3,3305.9,0.8045]
[1732314320982,0.15346,3307.2,3305.9,0.8045]
[1732314326960,0.15346,3307.2,3305.9,0.7845]
[1732314334585,0.55,3307.3,3305.9,0.7845]
[1732314335349,0.7673,3307.4,3305.9,0.7845]
[1732314335686,0.7673,3307.4,3306.0,0.35167826]
[1732314335892,0.7673,3307.4,3306.1,0.8307]
[1732314337224,0.7673,3307.4,3306.3,0.8307]
[1732314337432,0.7673,3307.4,3306.4,0.35167826]
[1732314337634,0.7673,3307.4,3306.5,0.8307]
[1732314338490,0.17263577,3307.3,3306.5,0.8307]
[1732314341039,0.55,3307.2,3306.5,0.8307]
[1732314343863,0.55,3307.0,3305.4,0.8307]
[1732314344627,0.8097,3307.1,3305.4,0.8307]
[1732314344863,0.8097,3306.9,3305.4,0.8307]
[1732314345064,0.8097,3306.7,3305.4,0.8307]
[1732314345224,0.55,3306.6,3305.4,0.8307]
[1732314345427,0.55,3306.6,3304.3,0.01]
[1732314345428,0.17263577,3307.3,3305.6,0.8307]
[1732314345628,0.55,3307.2,3305.7,0.30233769]
[1732314345824,0.55,3307.2,3305.8,0.8307]
[1732314346146,0.17263577,3307.3,3306.0,0.8307]
[1732314346471,0.17263577,3307.3,3306.2,0.8307]
[1732314346630,0.1493577,3307.5,3306.3,0.30233769]
[1732314346827,0.1493577,3307.5,3306.4,0.8307]
[1732314350941,0.55,3307.3,3306.4,0.8307]
[1732314353738,0.55,3307.1,3306.4,0.8307]
[1732314354248,0.55,3307.1,3304.8,0.7534]
[1732314354669,0.55,3306.9,3304.9,0.7534]
[1732314355843,0.55,3306.9,3305.0,0.7825]
[1732314356273,0.55,3306.9,3305.1,0.7825]
[1732314362194,0.55,3306.7,3305.1,0.7825]
[1732314362698,0.55,3306.5,3305.1,0.7825]
[1732314363205,0.55,3306.6,3305.1,0.7825]
[1732314363373,5.0,3306.9,3305.1,0.7825]
[1732314363374,0.55,3306.4,3305.1,0.7825]
[1732314364416,0.55,3306.2,3305.1,0.7825]
[1732314364559,0.7927,3306.1,3305.1,0.7825]
[1732314364883,0.55,3306.0,3305.1,0.7825]
[1732314365258,0.7927,3305.9,3305.1,0.7825]
[1732314365458,0.55,3305.8,3304.8,0.7825]
[1732314367505,0.7927,3305.7,3304.8,0.7825]
[1732314367672,0.55,3305.6,3304.8,0.7825]
[1732314369211,0.55,3305.6,3304.6,0.7825]
[1732314369507,0.7927,3305.7,3303.5,0.7825]
[1732314369508,0.55,3305.4,3303.5,0.7825]
[1732314369880,5.55,3305.4,3303.5,0.7825]
[1732314371002,0.55,3305.2,3303.5,0.7825]
[1732314372377,0.7979,3305.1,3303.5,0.7825]
[1732314372579,0.55,3305.0,3303.5,0.7825]
[1732314375011,5.0,3305.1,3303.5,0.7825]
[1732314375012,0.55,3305.1,3303.5,0.7825]
[1732314375318,0.55,3305.2,3303.5,0.7825]
[1732314380734,5.0,3305.6,3303.7,0.8256]
[1732314380947,0.5,3305.5,3303.7,0.8256]
[1732314381151,0.8119,3305.7,3303.7,0.8256]
[1732314381506,5.8119,3306.0,3303.8,0.03026543]
[1732314381707,0.58119,3305.9,3303.9,0.8256]
[1732314382007,0.58119,3305.9,3304.1,0.8256]
[1732314382229,0.8119,3306.6,3304.3,0.8256]
[1732314382429,0.8119,3306.6,3304.4,0.85585805]
[1732314382616,6.58962105,3306.8,3304.4,0.8256]
[1732314382818,0.57777211,3306.7,3304.4,0.8256]
[1732314384160,0.8119,3306.8,3304.4,0.8256]
[1732314385065,0.55,3306.7,3304.4,0.8256]
[1732314391375,0.7759,3306.3,3304.4,0.8256]
[1732314391580,0.55,3306.2,3304.4,0.8256]
[1732314392874,5.55,3306.2,3304.4,0.8256]
[1732314395216,0.55,3306.0,3304.4,0.8256]
[1732314395869,0.63259,3306.1,3304.4,0.8256]
[1732314396069,0.63259,3306.1,3303.2,0.31233769]
[1732314396070,0.63259,3306.1,3304.6,0.7505]
[1732314396368,5.0,3306.2,3304.7,0.03025568]
[1732314396574,5.0,3306.2,3304.8,0.7505]
[1732314396906,0.7817,3307.1,3304.8,0.7505]
[1732314397495,0.55,3307.0,3304.8,0.7505]
[1732314398067,0.55,3306.8,3304.8,0.7505]
[1732314400267,0.63317,3306.9,3304.8,0.7505]
[1732314401065,2.77721051,3307.2,3304.8,0.7505]
[1732314401269,0.55,3307.1,3304.8,0.7505]
[1732314402835,5.55,3307.1,3304.8,0.7505]
[1732314403774,0.55,3306.9,3304.8,0.7505]
[1732314403984,0.55,3306.6,3304.8,0.7505]
[1732314404164,0.55,3306.4,3304.8,0.7505]
[1732314404338,1.3317,3306.4,3304.8,0.7505]
[1732314405675,0.55,3306.4,3304.8,0.7505]
[1732314406540,0.555,3306.5,3304.8,0.7505]
[1732314406740,0.63367,3306.4,3304.8,0.7505]
[1732314407264,5.0,3306.7,3304.8,0.7505]
[1732314407741,5.55,3306.6,3304.8,0.7505]
[1732314409080,0.55,3306.4,3304.8,0.7505]
[1732314409966,4.10891051,3306.4,3304.8,0.7505]
[1732314410282,0.55,3306.2,3304.8,0.7505]
[1732314410881,0.55,3305.9,3304.8,0.7505]
[1732314411770,6.3319,3305.9,3304.8,0.7505]
[1732314413176,6.71544098,3305.9,3304.8,0.7505]
[1732314413506,0.55,3305.5,3304.8,0.7505]
[1732314413802,0.55,3305.3,3304.8,0.7505]
[1732314416995,0.7505,3305.2,3304.8,0.7505]
[1732314417501,0.55,3305.1,3304.8,0.7505]
[1732314423329,0.55,3305.1,3303.5,0.81]
[1732314423546,0.55,3305.1,3303.6,0.30383769]
[1732314423697,0.55,3305.1,3303.7,0.81]
[1732314424115,0.55,3305.1,3303.8,0.81]
[1732314424392,0.55,3305.1,3303.9,0.81]
[1732314425294,1.18005,3305.1,3304.0,0.81]
[1732314425910,1.18005,3305.1,3304.1,0.81]
[1732314426111,0.55,3305.1,3304.1,0.81]
[1732314426796,0.55,3305.1,3304.1,1.19626432]
[1732314426999,0.55,3305.1,3304.2,0.81]
[1732314428335,0.7505,3305.2,3304.2,0.81]
[1732314429545,0.55,3305.1,3304.2,0.81]
[1732314467024,0.73491139,3305.0,3303.3,0.38626432]
[1732314467197,0.7505,3305.2,3302.9,1.50187627]
[1732314467198,1.28491139,3304.9,3302.9,1.50187627]
[1732314467403,0.55,3304.7,3303.1,0.38626432]
[1732314467591,0.55,3304.5,3303.1,0.38626432]
[1732314467928,0.55,3304.3,3303.1,0.38626432]
[1732314468139,0.73491139,3304.2,3303.1,0.38626432]
[1732314468289,1.28491139,3304.1,3303.1,0.38626432]
[1732314468623,0.73491139,3304.0,3303.1,0.38626432]
[1732314468828,0.73491139,3303.9,3303.1,0.38626432]
[1732314468985,0.55,3303.7,3303.1,0.38626432]
[1732314469188,0.73491139,3303.6,3303.1,0.38626432]
[1732314469501,1.28491139,3303.5,3303.1,0.38626432]
[1732314469699,0.55,3303.3,3303.1,0.38626432]
[1732314469926,1.28491139,3303.2,3303.1,0.38626432]
[1732314470092,1.28491139,3303.2,3303.1,1.17016432]
[1732314472194,0.55,3305.0,3303.2,0.7904]
[1732314472390,0.55,3305.0,3303.3,0.7904]
[1732314473035,0.47105592,3303.4,3303.3,0.7904]
[1732314473193,0.47105592,3303.4,3303.3,1.17666432]
[1732314473528,0.70429275,3305.0,3303.4,0.7904]
[1732314478613,1.49919275,3305.0,3303.4,0.7904]
[1732314481211,0.70429275,3305.0,3303.4,0.7904]
[1732314481526,0.55,3304.7,3302.4,0.03026838]
[1732314481849,2.10951703,3304.8,3302.2,0.03027459]
[1732314481850,0.55,3302.7,3302.2,0.03027459]
[1732314482018,1.02110046,3302.7,3302.0,0.41654038]
[1732314482219,0.55,3302.7,3302.1,0.22137531]
[1732314482422,0.55,3302.5,3302.0,0.38626432]
[1732314482760,0.2311408,3304.7,3301.2,0.01]
[1732314482761,0.55,3302.3,3301.4,1.55480237]
[1732314482913,0.55,3302.1,3301.6,1.59449206]
[1732314483114,0.55,3301.9,3301.7,0.38626432]
[1732314483409,1.0016784,3301.9,3301.7,0.38626432]
[1732314483622,0.55,3301.9,3301.7,0.38626432]
[1732314484219,0.83211518,3301.8,3301.7,0.38626432]
[1732314484420,0.83211518,3301.8,3301.7,0.95486432]
[1732314485009,0.28211518,3301.8,3301.7,0.95486432]
[1732314485409,0.83211518,3301.8,3301.7,0.95486432]
[1732314487561,0.55,3301.8,3301.7,2.4695282]
[1732314491921,0.45055814,3302.9,3301.9,1.56052905]
[1732314492167,6.46919281,3304.6,3301.2,0.02]
[1732314492168,0.73212278,3302.8,3302.2,0.5686]
[1732314492324,0.28156464,3302.7,3302.3,1.96316146]
[1732314492524,0.45055814,3303.8,3302.5,1.57769425]
[1732314492724,0.73207071,3303.7,3302.6,0.4165361]
[1732314492939,0.73207071,3303.6,3302.7,1.55120958]
[1732314493121,0.8111,3304.4,3302.9,1.50187627]
[1732314493122,0.73207071,3303.5,3302.9,1.50187627]
[1732314493334,0.73195658,3303.4,3303.0,0.59887178]
[1732314493535,0.73195658,3303.3,3303.0,0.59887178]
[1732314493775,0.55,3303.1,3303.0,0.59887178]
[1732314493935,0.83152176,3303.1,3303.0,0.5686]
[1732314495370,0.83152176,3303.1,3303.0,0.95486432]
[1732314495574,0.83152176,3303.1,3303.0,0.5686]
[1732314495961,0.28152176,3303.1,3303.0,0.5686]